bitfinex/quotes_BTCUSD_20220201
["timestamp","ask_amount","ask_price","bid_price","bid_amount"]
[1643729422533,0.00083585,38491.0,38489.0,0.194878]
[1643729422731,0.001,38494.0,38489.0,0.194878]
[1643729422935,0.001,38494.0,38492.0,0.12800583]
[1643729423334,0.001,38494.0,38489.0,0.194878]
[1643729423535,0.001,38494.0,38491.0,0.064969]
[1643729425677,0.04797196,38496.0,38493.0,0.21794873]
[1643729425879,0.04797196,38496.0,38493.0,0.18794873]
[1643729426080,0.05,38495.0,38493.0,0.18794873]
[1643729426381,0.051,38497.0,38493.0,0.18794873]
[1643729426577,0.00147687,38496.0,38493.0,0.18794873]
[1643729426777,0.00147687,38496.0,38491.0,0.064969]
[1643729426778,0.28881659,38494.0,38491.0,0.064969]
[1643729427183,0.40379625,38494.0,38485.0,0.00131021]
[1643729427580,0.40379625,38494.0,38482.0,0.194907]
[1643729427581,0.449795,38493.0,38482.0,0.194907]
[1643729427779,0.92422539,38493.0,38485.0,0.00131021]
[1643729427984,1.382,38487.0,38485.0,0.00131021]
[1643729428179,1.382,38487.0,38484.0,0.0203643]
[1643729428180,0.45,38485.0,38484.0,0.02035529]
[1643729428442,0.45,38485.0,38468.0,0.7736]
[1643729428443,0.65,38482.0,38468.0,0.7736]
[1643729428639,1.382,38480.0,38468.0,0.7736]
[1643729428841,0.11097953,38476.0,38468.0,0.7736]
[1643729429036,0.08659492,38474.0,38467.0,0.13312346]
[1643729429237,0.349795,38473.0,38467.0,0.13312346]
[1643729429439,0.399795,38473.0,38469.0,0.065017]
[1643729430236,0.1,38472.0,38469.0,0.065017]
[1643729430437,0.349795,38471.0,38469.0,0.065017]
[1643729430635,0.399795,38471.0,38469.0,0.065017]
[1643729431739,0.05,38473.0,38469.0,0.065017]
[1643729432578,0.05,38473.0,38471.0,0.09118449]
[1643729432778,0.06501409,38474.0,38471.0,0.09118449]
[1643729432979,0.06501409,38474.0,38473.0,0.11324218]
[1643729433177,0.06501409,38474.0,38472.0,0.115003]
[1643729433178,0.06501409,38474.0,38472.0,0.065003]
[1643729433378,0.349795,38473.0,38472.0,0.065003]
[1643729434182,0.13181213,38472.0,38471.0,0.00130414]
[1643729434380,0.48160713,38472.0,38471.0,0.00130414]
[1643729434578,0.63307313,38472.0,38471.0,0.00130414]
[1643729434778,0.73307313,38472.0,38468.0,0.06502]
[1643729434984,0.73307313,38472.0,38470.0,0.0013042]
[1643729434985,0.43790085,38471.0,38470.0,0.0013042]
[1643729435179,0.48790085,38471.0,38470.0,0.0013042]
[1643729435582,0.05,38471.0,38470.0,0.13066455]
[1643729436038,0.05,38473.0,38470.0,0.3691032]
[1643729436238,0.5455,38478.0,38472.0,0.27055723]
[1643729436933,0.00147502,38488.0,38472.0,0.27055723]
[1643729436934,0.12999047,38484.0,38476.0,0.27627559]
[1643729437135,0.4955,38490.0,38477.0,0.25055131]
[1643729437332,0.4955,38490.0,38477.0,0.30055131]
[1643729437735,0.02099993,38486.0,38477.0,0.05]
[1643729437934,0.22012912,38484.0,38478.0,0.064995]
[1643729438335,0.06498807,38485.0,38478.0,0.064995]
[1643729438537,0.06498807,38485.0,38479.0,0.00130387]
[1643729438734,0.0840682,38480.0,38479.0,0.00130387]
[1643729438934,0.21489537,38480.0,38479.0,0.00130387]
[1643729439137,0.76489537,38480.0,38479.0,0.00130387]
[1643729439337,0.71469037,38480.0,38479.0,0.00130387]
[1643729439582,0.71469037,38480.0,38478.0,0.064995]
[1643729439783,0.71469037,38480.0,38478.0,0.06600554]
[1643729439784,0.34948231,38479.0,38478.0,0.06600554]
[1643729439983,0.36489537,38480.0,38478.0,0.00101054]
[1643729439984,0.1340682,38480.0,38478.0,0.00101054]
[1643729440187,0.05,38480.0,38478.0,0.00101054]
[1643729440383,0.06499328,38481.0,38478.0,0.00101054]
[1643729440587,0.0479,38480.0,38458.0,0.130032]
[1643729440785,0.0479,38480.0,38459.0,0.74729588]
[1643729440786,0.06501897,38477.0,38459.0,0.74729588]
[1643729440983,0.12350853,38470.0,38461.0,0.13390707]
[1643729441284,0.14173999,38463.0,38461.0,0.13390707]
[1643729441601,0.22635259,38462.0,38460.0,0.065021]
[1643729441782,0.349808,38461.0,38460.0,0.065021]
[1643729441984,0.399808,38461.0,38460.0,0.065021]
[1643729442791,0.05,38461.0,38460.0,0.065021]
[1643729443184,0.06502971,38462.0,38460.0,0.065021]
[1643729444432,0.934979,38460.0,38458.0,0.260033]
[1643729444634,0.984979,38460.0,38459.0,0.0012995]
[1643729445443,1.47712164,38460.0,38459.0,0.0012995]
[1643729445739,1.47712164,38460.0,38458.0,0.260033]
[1643729445740,1.334787,38460.0,38458.0,0.26133255]
[1643729445937,0.984979,38460.0,38458.0,0.26133255]
[1643729446739,0.984979,38460.0,38458.0,0.260033]
[1643729447694,0.934979,38460.0,38459.0,1.436748]
[1643729448094,0.544892,38460.0,38459.0,1.436748]
[1643729448288,0.544892,38460.0,38459.0,0.136748]
[1643729448489,0.544892,38460.0,38459.0,0.42057501]
[1643729448690,0.544892,38460.0,38458.0,0.26133255]
[1643729449089,0.544892,38460.0,38459.0,0.05]
[1643729449090,0.594892,38460.0,38459.0,0.05]
[1643729449893,0.544892,38460.0,38459.0,0.05]
[1643729450092,0.594892,38460.0,38459.0,0.05]
[1643729450491,0.544892,38460.0,38459.0,0.05]
[1643729450937,0.544892,38460.0,38459.0,1.22540243]
[1643729451245,0.13000837,38478.0,38462.0,0.065004]
[1643729451434,0.13000837,38478.0,38464.0,0.195009]
[1643729451637,0.13000837,38478.0,38464.0,0.09989]
[1643729451837,0.13000837,38478.0,38468.0,0.00129919]
[1643729451838,0.349808,38477.0,38468.0,0.00129919]
[1643729452036,0.07937146,38472.0,38468.0,0.00129919]
[1643729452236,0.01929868,38471.0,38468.0,0.00129919]
[1643729452436,0.01929868,38471.0,38469.0,0.065017]
[1643729452639,0.15069902,38471.0,38469.0,0.065017]
[1643729452836,0.13140034,38471.0,38469.0,0.065017]
[1643729454036,0.18140034,38471.0,38469.0,0.065017]
[1643729454438,0.05,38471.0,38469.0,0.065017]
[1643729456294,0.11500362,38475.0,38469.0,0.065017]
[1643729457292,0.06500362,38475.0,38469.0,0.065017]
[1643729457503,0.349808,38474.0,38469.0,0.065017]
[1643729457691,0.13003327,38473.0,38469.0,0.065017]
[1643729457890,0.13003327,38473.0,38470.0,0.00129912]
[1643729457891,0.349808,38472.0,38470.0,0.00129912]
[1643729458352,0.40115064,38471.0,38470.0,0.00129912]
[1643729458541,0.51676261,38471.0,38470.0,0.00129912]
[1643729458842,0.51676261,38471.0,38469.0,0.065017]
[1643729459042,0.349808,38470.0,38469.0,0.06631618]
[1643729459243,0.05,38471.0,38469.0,0.06631618]
[1643729459449,0.06501587,38472.0,38469.0,0.06631618]
[1643729460043,0.06501587,38472.0,38469.0,0.065017]
[1643729460245,0.13737311,38471.0,38469.0,0.06631618]
[1643729460444,0.22013802,38471.0,38469.0,0.06631618]
[1643729460850,0.349808,38470.0,38469.0,0.00129918]
[1643729461246,0.399808,38470.0,38462.0,0.065025]
[1643729461547,0.06502206,38468.0,38463.0,0.24058235]
[1643729461749,0.00147086,38485.0,38464.0,0.21674]
[1643729462095,0.00147086,38485.0,38476.0,0.05]
[1643729462295,0.00147086,38485.0,38482.0,0.05]
[1643729462498,0.002,38489.0,38484.0,0.12921654]
[1643729462695,0.001,38497.0,38484.0,0.12921654]
[1643729462696,0.001,38497.0,38485.0,0.31196796]
[1643729462900,0.001,38497.0,38487.0,0.05]
[1643729463095,0.001,38497.0,38489.0,0.03440881]
[1643729463296,0.001,38497.0,38490.0,0.086623]
[1643729463495,0.001,38497.0,38490.0,0.13318851]
[1643729463694,0.001,38497.0,38491.0,0.194864]
[1643729463695,0.15361634,38497.0,38491.0,0.194864]
[1643729463896,0.08647055,38496.0,38491.0,0.194864]
[1643729464094,0.001,38497.0,38491.0,0.36009484]
[1643729464296,0.001,38497.0,38492.0,0.29943536]
[1643729464494,0.001,38497.0,38493.0,0.09217131]
[1643729464694,0.001,38497.0,38494.0,0.08661]
[1643729464892,0.001,38497.0,38493.0,0.05]
[1643729465093,0.001,38497.0,38492.0,0.064961]
[1643729465094,0.00182736,38497.0,38492.0,0.064961]
[1643729465292,0.00182736,38497.0,38493.0,0.086612]
[1643729465493,0.00182736,38497.0,38494.0,0.0406055]
[1643729465693,0.00182736,38497.0,38495.0,0.216522]
[1643729465937,0.00182736,38497.0,38495.0,0.266522]
[1643729466139,0.001,38497.0,38496.0,0.03970265]
[1643729466336,0.001,38497.0,38496.0,0.12630565]
[1643729466534,0.01,38499.0,38496.0,0.086603]
[1643729466535,0.00782736,38499.0,38496.0,0.086603]
[1643729466739,0.00782736,38499.0,38497.0,0.0791605]
[1643729467735,0.00782736,38499.0,38498.0,0.05]
[1643729470091,0.00782736,38499.0,38496.0,0.114957]
[1643729470292,0.00782736,38499.0,38496.0,0.064957]
[1643729470893,0.31306423,38498.0,38496.0,0.064957]
[1643729471094,0.36306423,38498.0,38495.0,0.17680529]
[1643729471296,0.49300435,38498.0,38495.0,0.17680529]
[1643729471695,0.49300435,38498.0,38495.0,0.129915]
[1643729472293,0.06496984,38497.0,38495.0,0.129915]
[1643729474135,0.06496984,38497.0,38496.0,0.22776861]
[1643729474338,0.002,38501.0,38496.0,1.86470675]
[1643729474537,0.002,38501.0,38497.0,0.31847398]
[1643729474736,0.002,38504.0,38499.0,0.54397748]
[1643729475036,0.002,38504.0,38501.0,0.08717523]
[1643729475235,0.002,38504.0,38502.0,0.3991208]
[1643729475635,0.00792323,38507.0,38502.0,0.3991208]
[1643729475636,0.002,38507.0,38503.0,0.164941]
[1643729475834,0.002,38507.0,38504.0,0.086571]
[1643729476033,0.002,38507.0,38505.0,0.0479]
[1643729476234,0.002,38507.0,38506.0,0.986564]
[1643729476437,0.002,38507.0,38506.0,1.406564]
[1643729476836,0.002,38507.0,38506.0,0.506564]
[1643729477088,0.002,38507.0,38506.0,0.42]
[1643729477488,0.002,38507.0,38506.0,0.506564]
[1643729478087,0.002,38507.0,38506.0,0.42]
[1643729478289,0.002,38507.0,38506.0,0.506564]
[1643729478688,0.00168731,38507.0,38506.0,0.506564]
[1643729479691,0.00168731,38507.0,38506.0,0.74299888]
[1643729480289,0.002,38508.0,38507.0,0.82462789]
[1643729480488,0.002,38508.0,38507.0,0.13656]
[1643729480690,0.002,38508.0,38507.0,0.18446]
[1643729481337,0.002,38508.0,38507.0,0.05]
[1643729481538,0.002,38508.0,38506.0,0.42]
[1643729481744,1.07144643,38507.0,38506.0,0.42]
[1643729481938,1.299808,38507.0,38506.0,0.42]
[1643729482135,0.399808,38507.0,38506.0,0.42]
[1643729482334,0.05,38507.0,38506.0,0.42]
[1643729484238,0.399808,38507.0,38506.0,0.42]
[1643729485088,0.05,38507.0,38506.0,0.42]
[1643729487789,1.149808,38507.0,38506.0,0.42]
[1643729488436,0.39836014,38507.0,38506.0,0.42]
[1643729488639,0.04855214,38507.0,38506.0,0.42]
[1643729489936,0.79836014,38507.0,38506.0,0.42]
[1643729490139,0.39836014,38507.0,38506.0,0.42]
[1643729491141,0.39836014,38507.0,38503.0,0.064948]
[1643729491340,0.04855214,38507.0,38503.0,0.064948]
[1643729491540,0.04855214,38507.0,38503.0,0.16279692]
[1643729491738,0.00348548,38508.0,38504.0,0.086571]
[1643729491941,0.00348548,38508.0,38504.0,0.1257971]
[1643729492589,0.002,38508.0,38505.0,0.086567]
[1643729492791,0.00348548,38508.0,38504.0,0.039938]
[1643729493788,0.002,38508.0,38504.0,0.039938]
[1643729493989,0.00348548,38508.0,38504.0,0.039938]
[1643729494393,0.1293052,38508.0,38504.0,0.039938]
[1643729494695,0.1793052,38508.0,38504.0,0.039938]
[1643729494890,0.17781972,38508.0,38504.0,0.039938]
[1643729495091,0.1793052,38508.0,38504.0,0.039938]
[1643729497244,1.69476042,38499.0,38489.0,0.42]
[1643729497438,0.14041434,38494.0,38489.0,0.42]
[1643729497639,0.11497642,38493.0,38491.0,0.064979]
[1643729497839,0.11497642,38493.0,38492.0,0.086935]
[1643729498039,0.06497642,38493.0,38492.0,0.086935]
[1643729498437,0.12993497,38499.0,38492.0,0.086935]
[1643729498637,0.12993497,38499.0,38491.0,0.3801479]
[1643729498638,0.32425074,38499.0,38491.0,0.3801479]
[1643729499038,0.06496616,38498.0,38496.0,0.09245797]
[1643729499440,0.03996616,38498.0,38495.0,0.064967]
[1643729499883,0.03996616,38498.0,38496.0,0.09981]
[1643729500077,0.0479,38507.0,38496.0,0.09981]
[1643729500078,0.06495802,38501.0,38496.0,0.09981]
[1643729500279,0.02123052,38500.0,38499.0,0.064959]
[1643729500478,0.06495802,38501.0,38499.0,0.064959]
[1643729500679,0.17818848,38501.0,38499.0,0.064959]
[1643729500978,0.06495802,38501.0,38499.0,0.064959]
[1643729502683,0.349792,38500.0,38499.0,0.064959]
[1643729502881,0.349792,38500.0,38498.0,0.00135388]
[1643729503079,0.00148559,38502.0,38498.0,0.00135388]
[1643729503329,0.0649527,38504.0,38500.0,0.03941368]
[1643729503524,0.0649527,38504.0,38499.0,0.04378785]
[1643729503725,0.00148557,38502.0,38499.0,0.129903]
[1643729503926,0.15744477,38501.0,38499.0,0.129903]
[1643729504327,0.20744477,38501.0,38499.0,0.129903]
[1643729504526,0.20744477,38501.0,38499.0,0.194855]
[1643729504930,0.20744477,38501.0,38499.0,0.114952]
[1643729505126,0.05,38501.0,38499.0,0.114952]
[1643729507874,0.00148559,38502.0,38499.0,0.114952]
[1643729508074,0.17163494,38506.0,38499.0,0.179909]
[1643729508473,0.11708422,38501.0,38499.0,0.179909]
[1643729508675,0.16708422,38501.0,38499.0,0.179909]
[1643729508874,0.05,38501.0,38499.0,0.179909]
[1643729509274,0.05,38503.0,38499.0,0.179909]
[1643729509477,0.16495114,38507.0,38499.0,0.179909]
[1643729509478,0.00148559,38502.0,38499.0,0.179909]
[1643729510580,0.02032822,38506.0,38500.0,0.086904]
[1643729510830,0.00148558,38502.0,38499.0,0.21410235]
[1643729511023,0.00148558,38502.0,38500.0,0.13591535]
[1643729511423,0.00148558,38502.0,38500.0,0.086899]
[1643729511622,8.558e-05,38502.0,38501.0,1.58184886]
[1643729511827,0.02032822,38506.0,38501.0,1.58184886]
[1643729511828,0.02032822,38506.0,38503.0,0.064928]
[1643729512126,0.02032822,38506.0,38504.0,0.281662]
[1643729512323,0.0189526,38507.0,38505.0,0.04438275]
[1643729512528,0.012,38509.0,38507.0,0.0472147]
[1643729512825,0.012,38509.0,38508.0,0.18658058]
[1643729513023,0.012,38509.0,38508.0,0.086872]
[1643729514025,0.012,38509.0,38508.0,0.3159736]
[1643729514223,0.012,38509.0,38508.0,0.12703665]
[1643729515074,0.01168741,38509.0,38508.0,0.086872]
[1643729515272,0.01168741,38509.0,38508.0,0.22556605]
[1643729515472,0.01168741,38509.0,38508.0,0.19149226]
[1643729516473,0.004,38512.0,38509.0,1.15]
[1643729516676,0.00694829,38516.0,38511.0,0.65]
[1643729516677,0.001,38516.0,38511.0,0.65]
[1643729516873,0.00694829,38516.0,38512.0,0.536856]
[1643729517073,0.00694829,38516.0,38512.0,0.636856]
[1643729517272,0.00694829,38516.0,38512.0,0.986856]
[1643729517473,0.00694829,38516.0,38512.0,0.69305456]
[1643729517677,0.001,38516.0,38512.0,0.69305456]
[1643729517874,0.001,38516.0,38512.0,0.88778456]
[1643729518072,0.001,38516.0,38512.0,0.53778456]
[1643729518324,0.001,38516.0,38513.0,0.14061276]
[1643729518521,0.001,38516.0,38514.0,0.086848]
[1643729520327,0.001,38516.0,38514.0,0.18371213]
[1643729520524,0.00248905,38516.0,38514.0,0.18371213]
[1643729520723,0.00248905,38516.0,38514.0,0.09686413]
[1643729521324,0.001,38516.0,38514.0,0.18371113]
[1643729521521,0.00248905,38516.0,38514.0,0.18371113]
[1643729521730,0.00248905,38516.0,38512.0,0.09977]
[1643729521731,0.16715079,38513.0,38512.0,0.09977]
[1643729521926,0.349792,38513.0,38504.0,0.00136853]
[1643729522179,0.00248905,38516.0,38504.0,0.00136853]
[1643729522180,0.13187697,38515.0,38504.0,0.00136853]
[1643729522377,0.0479,38514.0,38504.0,0.00136853]
[1643729522575,0.12924523,38513.0,38508.0,0.07804055]
[1643729522776,0.00148912,38512.0,38508.0,0.07804055]
[1643729523179,0.00148912,38512.0,38504.0,0.00136853]
[1643729523380,0.13138694,38512.0,38504.0,0.00136853]
[1643729523576,0.18138694,38512.0,38504.0,0.00136853]
[1643729523776,0.27989782,38512.0,38501.0,0.7289]
[1643729523976,0.23247422,38511.0,38504.0,0.00136853]
[1643729524176,0.2812507,38509.0,38504.0,0.00136853]
[1643729524377,0.3312507,38509.0,38507.0,0.07872491]
[1643729524576,0.3312507,38509.0,38504.0,0.00136853]
[1643729524975,0.3312507,38509.0,38499.0,0.3453523]
[1643729525178,0.06494987,38506.0,38504.0,0.00136853]
[1643729525681,0.06494987,38506.0,38504.0,0.09604515]
[1643729525927,0.066944,38517.0,38505.0,0.086877]
[1643729525928,0.00438905,38517.0,38505.0,0.086877]
[1643729526125,0.06493148,38513.0,38504.0,0.09604515]
[1643729526327,0.13186295,38518.0,38505.0,0.186655]
[1643729526524,0.13186295,38518.0,38505.0,0.09978]
[1643729526726,0.02035835,38516.0,38515.0,0.08562146]
[1643729527725,0.02035835,38516.0,38515.0,0.17247046]
[1643729528124,0.002,38518.0,38515.0,0.17247046]
[1643729528328,0.002,38518.0,38515.0,0.08562146]
[1643729528724,0.001,38520.0,38515.0,0.08562146]
[1643729528725,0.001,38520.0,38516.0,0.08684]
[1643729528930,0.001,38522.0,38516.0,0.08684]
[1643729528931,0.001,38522.0,38517.0,0.22952812]
[1643729529125,0.001,38522.0,38515.0,0.18562146]
[1643729529126,0.001,38522.0,38518.0,0.1353727]
[1643729529325,0.001,38522.0,38519.0,0.03833912]
[1643729529575,0.002,38525.0,38521.0,1.4]
[1643729529778,0.02281543,38528.0,38522.0,0.9937915]
[1643729529979,0.02281543,38528.0,38522.0,1.18418138]
[1643729530179,0.02281543,38528.0,38523.0,0.03618514]
[1643729530375,0.02281543,38528.0,38525.0,0.10287177]
[1643729530583,0.001,38532.0,38529.0,0.13631733]
[1643729530776,0.001,38532.0,38530.0,0.41206793]
[1643729531175,0.001,38532.0,38530.0,0.64609551]
[1643729531375,0.001,38532.0,38530.0,0.51206793]
[1643729531776,0.001,38532.0,38530.0,0.74904156]
[1643729532077,0.001,38532.0,38530.0,0.41206793]
[1643729532477,0.001,38533.0,38531.0,0.45]
[1643729532681,0.001,38533.0,38532.0,0.086778]
[1643729532876,0.001,38533.0,38531.0,0.086779]
[1643729533331,0.001,38533.0,38532.0,0.12148833]
[1643729533533,0.001,38533.0,38532.0,0.20826533]
[1643729534627,0.001,38533.0,38532.0,0.086777]
[1643729535031,0.001,38533.0,38531.0,0.09972]
[1643729535529,0.001,38533.0,38532.0,0.086777]
[1643729536328,0.001,38533.0,38532.0,0.18198095]
[1643729536529,0.001,38533.0,38532.0,0.09520395]
[1643729538485,0.001,38533.0,38531.0,0.09972]
[1643729538689,0.13079437,38533.0,38531.0,0.09972]
[1643729538882,0.349792,38532.0,38531.0,0.09972]
[1643729539081,0.449792,38532.0,38531.0,0.09972]
[1643729539280,0.349792,38532.0,38531.0,0.09972]
[1643729539480,0.23079437,38533.0,38531.0,0.18829633]
[1643729539681,0.23228831,38533.0,38531.0,0.18829633]
[1643729540481,0.18228831,38533.0,38531.0,0.18829633]
[1643729540682,0.18079437,38533.0,38531.0,0.18829633]
[1643729541333,0.799792,38532.0,38531.0,0.08857633]
[1643729541525,0.349792,38532.0,38531.0,0.08857633]
[1643729541726,0.349792,38532.0,38531.0,0.02252106]
[1643729541923,0.06490443,38530.0,38527.0,0.01910051]
[1643729542624,0.06490443,38530.0,38522.0,0.38085385]
[1643729542925,0.06490443,38530.0,38527.0,0.08756916]
[1643729543323,0.00149404,38528.0,38527.0,0.08756916]
[1643729543522,0.05149404,38528.0,38527.0,0.08756916]
[1643729544125,0.05,38528.0,38527.0,0.08756916]
[1643729546582,0.05,38528.0,38522.0,0.09974]
[1643729546873,0.05,38528.0,38522.0,0.1011287]
[1643729547478,0.12081022,38525.0,38522.0,0.1011287]
[1643729547681,0.72581156,38524.0,38507.0,0.7848]
[1643729547983,0.72581156,38524.0,38522.0,0.00138872]
[1643729547984,0.995292,38523.0,38522.0,0.00138872]
[1643729548177,0.3,38522.0,38507.0,0.88458]
[1643729548428,0.37916295,38514.0,38507.0,0.88458]
[1643729548629,0.37916295,38514.0,38511.0,0.09088677]
[1643729548828,0.19480907,38513.0,38511.0,0.09088677]
[1643729549929,0.11493636,38513.0,38511.0,0.09088677]
[1643729550131,0.12983838,38518.0,38512.0,0.086856]
[1643729550529,0.12983838,38518.0,38513.0,0.29704766]
[1643729551129,0.4268555,38518.0,38513.0,0.29704766]
[1643729551329,0.06491591,38516.0,38513.0,0.29704766]
[1643729551737,0.06491591,38516.0,38514.0,0.0006893]
[1643729552176,1.02564937,38515.0,38514.0,0.0006893]
[1643729552378,1.37544137,38515.0,38514.0,0.0006893]
[1643729552583,1.37544137,38515.0,38495.0,0.2408]
[1643729552584,0.05,38514.0,38495.0,0.2408]
[1643729552780,0.05,38510.0,38495.0,0.2408]
[1643729552976,0.1,38507.0,38495.0,0.2408]
[1643729553176,0.32396832,38509.0,38491.0,0.841355]
[1643729553177,0.22171213,38498.0,38491.0,0.841355]
[1643729553375,0.10367993,38497.0,38492.0,0.08270448]
[1643729553575,0.1144385,38501.0,38492.0,0.08270448]
[1643729553775,0.1644385,38501.0,38492.0,0.08270448]
[1643729554074,0.06495543,38498.0,38491.0,0.02073089]
[1643729554279,0.06495543,38498.0,38488.0,0.1299]
[1643729554875,0.06495543,38498.0,38495.0,0.27892747]
[1643729555080,0.06495543,38498.0,38496.0,0.32972046]
[1643729555276,0.05,38499.0,38497.0,0.26085062]
[1643729555476,0.05,38499.0,38498.0,0.086911]
[1643729555676,0.11493943,38501.0,38498.0,0.3279971]
[1643729555927,0.11493943,38501.0,38499.0,0.28812685]
[1643729556128,0.11493943,38501.0,38500.0,0.086903]
[1643729556325,0.11493943,38501.0,38500.0,0.31023204]
[1643729556527,0.05,38501.0,38500.0,0.31435481]
[1643729556837,0.06493859,38504.0,38500.0,0.31435481]
[1643729556838,0.05,38503.0,38500.0,0.31435481]
[1643729557229,0.05,38503.0,38500.0,0.086903]
[1643729557630,0.05,38503.0,38500.0,0.08827517]
[1643729557830,0.05,38503.0,38500.0,0.15321017]
[1643729558630,0.05,38503.0,38500.0,0.151838]
[1643729558831,0.05,38503.0,38500.0,0.15321017]
[1643729559033,0.05,38503.0,38500.0,0.00137217]
[1643729559889,0.09304299,38502.0,38497.0,0.10064585]
[1643729560087,0.09304299,38502.0,38500.0,0.00137217]
[1643729560088,0.06494678,38501.0,38500.0,0.00137217]
[1643729561091,0.06494678,38501.0,38497.0,0.10064585]
[1643729561289,0.06494678,38501.0,38499.0,0.00137221]
[1643729562098,0.09483791,38505.0,38500.0,0.086901]
[1643729562291,0.09483791,38505.0,38497.0,0.10064585]
[1643729562492,0.09483791,38505.0,38498.0,0.00137223]
[1643729562691,0.09483791,38505.0,38503.0,0.08132786]
[1643729562892,0.09483791,38505.0,38498.0,0.05137223]
[1643729563093,0.09483791,38505.0,38498.0,0.00137223]
[1643729563342,0.35782836,38502.0,38498.0,0.00137223]
[1643729563538,0.35782836,38502.0,38488.0,0.22406254]
[1643729563539,0.349792,38501.0,38488.0,0.22406254]
[1643729563734,0.349792,38501.0,38500.0,0.00137217]
[1643729563735,0.4979,38501.0,38500.0,0.00137217]
[1643729563934,0.847692,38501.0,38500.0,0.00137217]
[1643729564137,0.94811871,38501.0,38500.0,0.00137217]
[1643729564739,0.14632301,38493.0,38488.0,0.22406254]
[1643729564936,0.34278923,38501.0,38499.0,0.00137221]
[1643729565137,0.349792,38500.0,38499.0,0.00137221]
[1643729565335,0.05,38500.0,38499.0,0.00137221]
[1643729565737,0.349792,38500.0,38499.0,0.00137221]
[1643729565936,0.0649622,38499.0,38491.0,0.45270729]
[1643729566136,0.0649622,38499.0,38498.0,0.00137224]
[1643729567178,0.0649622,38499.0,38494.0,0.064949]
[1643729567387,0.0649622,38499.0,38497.0,0.00137228]
[1643729567980,0.0649622,38499.0,38497.0,0.29667247]
[1643729568179,0.0649622,38499.0,38497.0,0.29530019]
[1643729568879,0.0649622,38499.0,38496.0,0.0013723]
[1643729569580,0.0649622,38499.0,38492.0,0.08626013]
[1643729569779,0.0649622,38499.0,38496.0,0.00137231]
[1643729570834,0.0649622,38499.0,38497.0,0.086913]
[1643729571428,0.0649622,38499.0,38496.0,0.00137231]
[1643729571828,0.0649622,38499.0,38495.0,0.29660649]
[1643729572028,0.0649622,38499.0,38498.0,0.08290999]
[1643729572733,0.0649622,38499.0,38496.0,0.00137231]
[1643729573130,0.0649622,38499.0,38492.0,0.05]
[1643729573329,0.0649622,38499.0,38496.0,0.00137231]
[1643729574129,0.0649622,38499.0,38497.0,0.10256276]
[1643729574581,0.0649622,38499.0,38496.0,0.00137231]
[1643729575580,0.0649622,38499.0,38493.0,0.25700307]
[1643729575782,0.0649622,38499.0,38497.0,0.10407316]
[1643729576987,0.05,38501.0,38498.0,0.37011726]
[1643729577285,0.12685504,38509.0,38498.0,0.68753187]
[1643729577584,0.12685504,38509.0,38499.0,0.186901]
[1643729577585,0.05,38509.0,38499.0,0.186901]
[1643729577783,0.47,38511.0,38500.0,0.22688837]
[1643729577988,0.47,38511.0,38507.0,0.07999411]
[1643729578183,0.53493135,38511.0,38504.0,0.25176981]
[1643729578437,0.13623452,38509.0,38504.0,0.25176981]
[1643729578635,0.13623452,38509.0,38504.0,0.30176981]
[1643729578838,0.18623452,38509.0,38503.0,0.064938]
[1643729579035,0.18623452,38509.0,38502.0,0.00137208]
[1643729579238,0.06493855,38508.0,38505.0,0.07912473]
[1643729579438,0.42,38511.0,38505.0,0.07912473]
[1643729579635,0.41534266,38500.0,38495.0,1.021873]
[1643729579834,0.42,38511.0,38499.0,0.35218708]
[1643729580036,0.42,38511.0,38499.0,0.26528908]
[1643729580236,0.1021082,38508.0,38504.0,0.09428715]
[1643729580443,0.06493968,38507.0,38504.0,0.09428715]
[1643729581035,0.1021082,38508.0,38504.0,0.09428715]
[1643729581036,0.05,38508.0,38504.0,0.09428715]
[1643729581237,0.05,38512.0,38505.0,0.086883]
[1643729581436,0.05,38512.0,38504.0,0.14428715]
[1643729581652,0.06493242,38510.0,38504.0,0.14428715]
[1643729582076,0.19965946,38510.0,38504.0,0.14428715]
[1643729582679,0.19965946,38510.0,38501.0,0.15]
[1643729582879,0.06493856,38509.0,38501.0,0.15]
[1643729583079,0.06493856,38509.0,38502.0,0.00136522]
[1643729583481,0.12987844,38508.0,38502.0,0.00136522]
[1643729583879,0.05,38507.0,38502.0,0.00136522]
[1643729584080,0.05,38507.0,38503.0,0.086883]
[1643729584281,0.05,38507.0,38504.0,0.09484901]
[1643729584481,0.05,38507.0,38502.0,0.00136522]
[1643729584683,0.0649388,38506.0,38502.0,0.00136522]
[1643729585285,0.0649388,38506.0,38496.0,0.259743]
[1643729585485,0.05,38507.0,38496.0,0.259743]
[1643729585486,0.15218278,38503.0,38502.0,0.00136522]
[1643729585939,0.20218278,38503.0,38502.0,0.00136522]
[1643729586336,0.20218278,38503.0,38499.0,0.09222926]
[1643729586536,0.20218278,38503.0,38495.0,0.7511]
[1643729586537,1.0,38500.0,38495.0,0.7511]
[1643729586740,0.23769123,38499.0,38492.0,0.064952]
[1643729586936,0.28559123,38499.0,38489.0,0.129894]
[1643729587135,0.28559123,38499.0,38487.0,0.598963]
[1643729587534,0.24227974,38491.0,38487.0,0.10340368]
[1643729587734,0.29227974,38491.0,38487.0,0.09794068]
[1643729587937,0.29227974,38491.0,38486.0,0.064961]
[1643729588134,0.22066631,38490.0,38485.0,0.00273164]
[1643729588538,0.349792,38489.0,38485.0,0.00273164]
[1643729588734,0.23690227,38488.0,38478.0,0.7729]
[1643729588940,0.23690227,38488.0,38481.0,0.0888507]
[1643729588941,0.07622919,38485.0,38481.0,0.0888507]
[1643729589136,0.14194323,38484.0,38480.0,0.00273203]
[1643729589785,0.36065146,38484.0,38480.0,0.00273203]
[1643729589986,0.36065146,38484.0,38477.0,0.01039]
[1643729590185,0.29481475,38483.0,38480.0,0.001366]
[1643729590386,0.34481475,38483.0,38480.0,0.001366]
[1643729590585,0.05,38483.0,38480.0,0.001366]
[1643729591190,0.11498027,38484.0,38478.0,0.064977]
[1643729591386,0.11498027,38484.0,38480.0,0.00136602]